fUST/lending_fUST_20250725
["ID","MTS","AMOUNT","RATE_DAILY","PERIOD"]
[374789580,1753446645485,-460.0,0.00019726,2]
[374789581,1753446645495,-460.0,0.00019726,2]
[374789582,1753446645504,-460.0,0.00019726,2]
[374789583,1753446645514,-460.0,0.00019726,2]
[374789584,1753446645523,-460.0,0.00019726,2]
[374789585,1753446645533,-460.0,0.00019726,2]
[374789586,1753446645543,-460.0,0.00019726,2]
[374789587,1753446645552,-460.0,0.00019726,2]
[374789588,1753446645562,-460.0,0.00019726,2]
[374789589,1753446645572,-460.0,0.00019726,2]
[374789590,1753446645581,-1026.89,0.00019726,2]
[374789591,1753446645591,-460.0,0.00019726,2]
[374789592,1753446645602,-460.0,0.00019726,2]
[374789593,1753446645613,-460.0,0.00019726,2]
[374789594,1753446645624,-460.0,0.00019726,2]
[374789595,1753446645637,-460.0,0.00019726,2]
[374789596,1753446645646,-2497.12,0.00019726,2]
[374789597,1753446645657,-460.0,0.00019726,2]
[374789599,1753446645666,-460.0,0.00019726,2]
[374789601,1753446645675,-460.0,0.00019726,2]
[374789602,1753446645685,-428.38,0.00019815,2]
[374789603,1753446645696,-1080.79786783,0.00019866,2]
[374789604,1753446645706,-335.94827687,0.00019953,2]
[374789605,1753446645716,-177.7876737,0.00019966,2]
[374789606,1753446645725,-460.0,0.0002,2]
[374789607,1753446645735,-460.0,0.0002,2]
[374789608,1753446645745,-460.0,0.0002,2]
[374789609,1753446645756,-460.0,0.0002,2]
[374789610,1753446645766,-460.0,0.0002,2]
[374789611,1753446645776,-460.0,0.0002,2]
[374789612,1753446645786,-495.24112983,0.0002,2]
[374789613,1753446645796,-460.0,0.0002,2]
[374789614,1753446645806,-197.09982549,0.0002,2]
[374789615,1753446645815,-460.0,0.0002,2]
[374789616,1753446645825,-460.0,0.0002,2]
[374789617,1753446645835,-460.0,0.0002,2]
[374789618,1753446645845,-460.0,0.0002,2]
[374789619,1753446645855,-460.0,0.0002,2]
[374789620,1753446645864,-632.94,0.0002,2]
[374789621,1753446645874,-460.0,0.0002,2]
[374789623,1753446645886,-460.0,0.0002,2]
[374789624,1753446645896,-887.82,0.0002,2]
[374789625,1753446645905,-460.0,0.0002,2]
[374789626,1753446645915,-460.0,0.0002,2]
[374789627,1753446645925,-460.0,0.0002,2]
[374789628,1753446645935,-460.0,0.0002,2]
[374789629,1753446645945,-460.0,0.0002,2]
[374789630,1753446645954,-460.0,0.0002,2]
[374789631,1753446645965,-460.0,0.0002,2]
[374789632,1753446645974,-460.0,0.0002,2]
[374789633,1753446645983,-520.02,0.0002,2]
[374789634,1753446645992,-4130.28,0.0002,2]
[374789635,1753446646001,-460.0,0.0002,2]
[374789636,1753446646011,-460.0,0.0002,2]
[374789637,1753446646021,-460.0,0.0002,2]
[374789638,1753446646030,-460.0,0.0002,2]
[374789639,1753446646041,-588.86,0.0002,2]
[374789640,1753446646051,-460.0,0.0002,2]
[374789641,1753446646060,-460.0,0.0002,2]
[374789642,1753446646070,-460.0,0.0002,2]
[374789643,1753446646079,-460.0,0.0002,2]
[374789644,1753446646089,-3401.29,0.0002,2]
[374789645,1753446646098,-460.0,0.0002,2]
[374789646,1753446646107,-460.0,0.0002,2]
[374789647,1753446646117,-1596.19,0.0002,2]
[374789648,1753446646127,-151.0,0.0002,2]
[374789649,1753446646143,-460.0,0.0002,2]
[374789650,1753446646153,-678.92,0.0002,2]
[374789651,1753446646163,-1238.21,0.0002,2]
[374789652,1753446646173,-460.0,0.0002,2]
[374789653,1753446646182,-460.0,0.0002,2]
[374789654,1753446646192,-460.0,0.0002,2]
[374789655,1753446646202,-1434.65,0.0002,2]
[374789656,1753446646213,-460.0,0.0002,2]
[374789657,1753446646223,-460.0,0.0002,2]
[374789658,1753446646232,-460.0,0.0002,2]
[374789659,1753446646242,-469.39,0.0002,2]
[374789660,1753446646252,-460.0,0.0002,2]
[374789661,1753446646261,-460.0,0.0002,2]
[374789662,1753446646271,-460.0,0.0002,2]
[374789663,1753446646281,-460.0,0.0002,2]
[374789664,1753446646290,-885.79,0.0002,2]
[374789665,1753446646300,-1182.99,0.0002,2]
[374789666,1753446646333,-203.81716611,0.0002,2]
[374789667,1753446646343,-460.0,0.0002,2]
[374789668,1753446646353,-460.0,0.0002,2]
[374789669,1753446646363,-519.03080719,0.0002,2]
[374789670,1753446646373,-527.35245545,0.0002,2]
[374789671,1753446646382,-460.0,0.0002,2]
[374789672,1753446646395,-460.0,0.0002,2]
[374789673,1753446646405,-460.0,0.0002,2]
[374789674,1753446646415,-460.0,0.0002,2]
[374789675,1753446646424,-460.0,0.0002,2]
[374789676,1753446646433,-151.0,0.0002,2]
[374789677,1753446646443,-460.0,0.0002,2]
[374789678,1753446646454,-1059.6,0.0002,2]
[374789679,1753446646464,-460.0,0.0002,2]
[374789680,1753446646474,-460.0,0.0002,2]
[374789681,1753446646483,-368.337566,0.0002,2]
[374789682,1753446646493,-368.337566,0.0002,2]
[374789683,1753446646502,-460.0,0.0002,2]
[374789684,1753446646515,-460.0,0.0002,2]
[374789685,1753446646525,-753.31,0.0002,2]
[374789686,1753446646535,-1227.54,0.0002,2]
[374789687,1753446646544,-460.0,0.0002,2]
[374789688,1753446646554,-460.0,0.0002,2]
[374789689,1753446646565,-460.0,0.0002,2]
[374789690,1753446646575,-460.0,0.0002,2]
[374789691,1753446646585,-460.0,0.0002,2]
[374789692,1753446646594,-460.0,0.0002,2]
[374789693,1753446646604,-460.0,0.0002,2]
[374789694,1753446646613,-460.0,0.0002,2]
[374789695,1753446646623,-460.0,0.0002,2]
[374789696,1753446646633,-460.0,0.0002,2]
[374789697,1753446646644,-460.0,0.0002,2]
[374789698,1753446646653,-460.0,0.0002,2]
[374789699,1753446646663,-1026.89,0.0002,2]
[374789700,1753446646672,-460.0,0.0002,2]
[374789701,1753446646682,-460.0,0.0002,2]
[374789702,1753446646692,-460.0,0.0002,2]
[374789703,1753446646703,-460.0,0.0002,2]
[374789704,1753446646713,-460.0,0.0002,2]
[374789705,1753446646723,-2497.12,0.0002,2]
[374789706,1753446646732,-460.0,0.0002,2]
[374789707,1753446646742,-1000.0,0.00020021,2]
[374789708,1753446646752,-500.0,0.00020021,2]
[374789709,1753446646761,-500.0,0.00020021,2]
[374789710,1753446646771,-1000.0,0.00020021,2]
[374789711,1753446646781,-1000.0,0.00020021,2]
[374789712,1753446646791,-500.9714425,0.00020021,2]
[374789713,1753446646801,-1000.0,0.00020021,2]
[374789714,1753446646811,-1000.0,0.00020021,2]
[374789715,1753446646820,-1000.0,0.00020021,2]
[374789716,1753446646829,-151.0,0.00020021,2]
[374789717,1753446646839,-151.0,0.00020021,2]
[374789718,1753446646849,-151.0,0.00020021,2]
[374789719,1753446646858,-420.0,0.00020056,2]
[374789720,1753446646868,-1000.0,0.00020059,2]
[374789721,1753446646878,-1064.0,0.00020103,2]
[374789722,1753446646887,-1080.79786783,0.00020107,2]
[374789723,1753446646897,-408.033027,0.00020187,2]
[374789724,1753446646907,-216.1,0.00020269,3]
[374789725,1753446646916,-460.0,0.00020273,2]
[374789726,1753446646926,-460.0,0.00020273,2]
[374789727,1753446646935,-460.0,0.00020273,2]
[374789728,1753446646945,-460.0,0.00020273,2]
[374789729,1753446646955,-460.0,0.00020273,2]
[374789730,1753446646965,-460.0,0.00020273,2]
[374789731,1753446646976,-632.94,0.00020273,2]
[374789732,1753446646995,-460.0,0.00020273,2]
[374789733,1753446647006,-460.0,0.00020273,2]
[374789734,1753446647016,-887.82,0.00020273,2]
[374789735,1753446647025,-460.0,0.00020273,2]
[374789736,1753446647035,-460.0,0.00020273,2]
[374789737,1753446647044,-460.0,0.00020273,2]
[374789738,1753446647054,-460.0,0.00020273,2]
[374789739,1753446647064,-460.0,0.00020273,2]
[374789740,1753446647073,-460.0,0.00020273,2]
[374789741,1753446647083,-211.5186869,0.00020273,2]
[374789742,1753446647092,-520.02,0.00020273,2]
[374789743,1753446647102,-4130.28,0.00020273,2]
[374789744,1753446647111,-460.0,0.00020273,2]
[374789745,1753446647122,-460.0,0.00020273,2]
[374789746,1753446647134,-197.10721606,0.00020273,2]
[374789747,1753446647143,-460.0,0.00020273,2]
[374789748,1753446647153,-460.0,0.00020273,2]
[374789749,1753446647163,-588.86,0.00020273,2]
[374789750,1753446647174,-460.0,0.00020273,2]
[374789751,1753446647185,-460.0,0.00020273,2]
[374789752,1753446647196,-460.0,0.00020273,2]
[374789753,1753446647207,-460.0,0.00020273,2]
[374789754,1753446647217,-3401.29,0.00020273,2]
[374789755,1753446647228,-460.0,0.00020273,2]
[374789756,1753446647238,-460.0,0.00020273,2]
[374789757,1753446647248,-1596.19,0.00020273,2]
[374789758,1753446647257,-460.0,0.00020273,2]
[374789759,1753446647267,-678.92,0.00020273,2]
[374789760,1753446647277,-1238.21,0.00020273,2]
[374789761,1753446647287,-478.07262341,0.00020273,2]
[374789762,1753446647297,-460.0,0.00020273,2]
[374789763,1753446647307,-460.0,0.00020273,2]
[374789764,1753446647316,-1434.65,0.00020273,2]
[374789765,1753446647326,-460.0,0.00020273,2]
[374789766,1753446647336,-460.0,0.00020273,2]
[374789767,1753446647346,-469.39,0.00020273,2]
[374789768,1753446647356,-460.0,0.00020273,2]
[374789769,1753446647366,-460.0,0.00020273,2]
[374789770,1753446647376,-460.0,0.00020273,2]
[374789771,1753446647387,-460.0,0.00020273,2]
[374789772,1753446647397,-885.79,0.00020273,2]
[374789773,1753446647407,-1182.99,0.00020273,2]
[374789774,1753446647416,-460.0,0.00020273,2]
[374789775,1753446647427,-460.0,0.00020273,2]
[374789776,1753446647438,-460.0,0.00020273,2]
[374789777,1753446647447,-460.0,0.00020273,2]
[374789778,1753446647458,-460.0,0.00020273,2]
[374789779,1753446647468,-460.0,0.00020273,2]
[374789780,1753446647478,-460.0,0.00020273,2]
[374789781,1753446647488,-460.0,0.00020273,2]
[374789782,1753446647498,-1059.6,0.00020273,2]
[374789783,1753446647507,-460.0,0.00020273,2]
[374789784,1753446647517,-460.0,0.00020273,2]
[374789785,1753446647526,-460.0,0.00020273,2]
[374789786,1753446647536,-460.0,0.00020273,2]
[374789787,1753446647545,-753.31,0.00020273,2]
[374789788,1753446647555,-1227.54,0.00020273,2]
[374789789,1753446647566,-460.0,0.00020273,2]
[374789790,1753446647576,-460.0,0.00020273,2]
[374789791,1753446647587,-460.0,0.00020273,2]
[374789792,1753446647596,-460.0,0.00020273,2]
[374789793,1753446647606,-460.0,0.00020273,2]
[374789794,1753446647616,-460.0,0.00020273,2]
[374789795,1753446647626,-460.0,0.00020273,2]
[374789796,1753446647635,-460.0,0.00020273,2]
[374789797,1753446647645,-460.0,0.00020273,2]
[374789798,1753446647654,-460.0,0.00020273,2]
[374789799,1753446647664,-460.0,0.00020273,2]
[374789800,1753446647674,-1026.89,0.00020273,2]
[374789801,1753446647684,-460.0,0.00020273,2]
[374789802,1753446647693,-460.0,0.00020273,2]
[374789803,1753446647703,-460.0,0.00020273,2]
[374789804,1753446647714,-460.0,0.00020273,2]
[374789805,1753446647724,-2497.12,0.00020273,2]
[374789806,1753446647735,-460.0,0.00020273,2]
[374789807,1753446647747,-1080.79786783,0.00020348,3]
[374789808,1753446647758,-160.0,0.00020405,2]
[374789809,1753446647770,-732.32,0.00020538,3]
[374789810,1753446647781,-366.16,0.00020538,3]
[374789811,1753446647793,-460.0,0.00020547,2]
[374789812,1753446647804,-460.0,0.00020547,2]
[374789813,1753446647813,-151.0,0.00020547,2]
[374789814,1753446647824,-460.0,0.00020547,2]
[374789815,1753446647836,-152.193325,0.00020547,2]
[374789816,1753446647846,-229.107257,0.00020547,2]
[374789817,1753446647858,-460.0,0.00020547,2]
[374789818,1753446647868,-151.0,0.00020547,2]
[374789819,1753446647878,-409.5,0.00020547,2]
[374789820,1753446647888,-632.94,0.00020547,2]
[374789821,1753446647897,-460.0,0.00020547,2]
[374789822,1753446647907,-460.0,0.00020547,2]
[374789823,1753446647917,-887.82,0.00020547,2]
[374789824,1753446647926,-460.0,0.00020547,2]
[374789825,1753446647936,-460.0,0.00020547,2]
[374789826,1753446647946,-460.0,0.00020547,2]
[374789827,1753446647956,-520.02,0.00020547,2]
[374789828,1753446647966,-4130.28,0.00020547,2]
[374789829,1753446647978,-460.0,0.00020547,2]
[374789830,1753446647988,-460.0,0.00020547,2]
[374789831,1753446647998,-460.0,0.00020547,2]
[374789832,1753446648008,-588.86,0.00020547,2]
[374789833,1753446648018,-460.0,0.00020547,2]
[374789834,1753446648028,-460.0,0.00020547,2]
[374789835,1753446648038,-460.0,0.00020547,2]
[374789836,1753446648048,-3401.29,0.00020547,2]
[374789837,1753446648058,-250.60818836,0.00020547,2]
[374789838,1753446648068,-1596.19,0.00020547,2]
[374789839,1753446648077,-460.0,0.00020547,2]
[374789840,1753446648087,-678.92,0.00020547,2]
[374789841,1753446648097,-1238.21,0.00020547,2]
[374789842,1753446648107,-460.0,0.00020547,2]
[374789843,1753446648117,-460.0,0.00020547,2]
[374789844,1753446648128,-1434.65,0.00020547,2]
[374789845,1753446648141,-460.0,0.00020547,2]
[374789846,1753446648151,-460.0,0.00020547,2]
[374789847,1753446648161,-469.39,0.00020547,2]
[374789848,1753446648172,-460.0,0.00020547,2]
[374789849,1753446648181,-220.0,0.00020547,2]
[374789850,1753446648191,-460.0,0.00020547,2]
[374789851,1753446648202,-460.0,0.00020547,2]
[374789852,1753446648212,-885.79,0.00020547,2]
[374789853,1753446648221,-1182.99,0.00020547,2]
[374789854,1753446648231,-460.0,0.00020547,2]
[374789855,1753446648241,-460.0,0.00020547,2]
[374789856,1753446648251,-460.0,0.00020547,2]
[374789857,1753446648261,-460.0,0.00020547,2]
[374789858,1753446648272,-460.0,0.00020547,2]
[374789859,1753446648282,-460.0,0.00020547,2]
[374789860,1753446648292,-460.0,0.00020547,2]
[374789861,1753446648301,-460.0,0.00020547,2]
[374789862,1753446648311,-1059.6,0.00020547,2]
[374789863,1753446648321,-460.0,0.00020547,2]
[374789864,1753446648331,-460.0,0.00020547,2]
[374789865,1753446648340,-460.0,0.00020547,2]
[374789866,1753446648350,-460.0,0.00020547,2]
[374789867,1753446648360,-753.31,0.00020547,2]
[374789868,1753446648370,-1227.54,0.00020547,2]
[374789869,1753446648380,-460.0,0.00020547,2]
[374789870,1753446648391,-460.0,0.00020547,2]
[374789871,1753446648402,-460.0,0.00020547,2]
[374789872,1753446648414,-460.0,0.00020547,2]
[374789873,1753446648424,-460.0,0.00020547,2]
[374789874,1753446648434,-460.0,0.00020547,2]
[374789875,1753446648444,-460.0,0.00020547,2]
[374789876,1753446648453,-460.0,0.00020547,2]
[374789877,1753446648463,-460.0,0.00020547,2]
[374789878,1753446648473,-460.0,0.00020547,2]
[374789879,1753446648483,-1026.89,0.00020547,2]
[374789880,1753446648493,-460.0,0.00020547,2]
[374789881,1753446648504,-460.0,0.00020547,2]
[374789882,1753446648514,-460.0,0.00020547,2]
[374789883,1753446648524,-460.0,0.00020547,2]
[374789884,1753446648534,-460.0,0.00020547,2]
[374789885,1753446648544,-2497.12,0.00020547,2]
[374789886,1753446648555,-1500.0,0.00020568,2]
[374789887,1753446648564,-1500.0,0.00020568,2]
[374789888,1753446648574,-1507.57266618,0.00020568,2]
[374789889,1753446648584,-1500.0,0.00020568,2]
[374789890,1753446648594,-1080.79786783,0.0002059,3]
[374789891,1753446648604,-216.1,0.00020797,4]
[374789892,1753446648614,-460.0,0.00020821,2]
[374789893,1753446648624,-460.0,0.00020821,2]
[374789894,1753446648634,-632.94,0.00020821,2]
[374789895,1753446648644,-460.0,0.00020821,2]
[374789896,1753446648654,-460.0,0.00020821,2]
[374789897,1753446648664,-887.82,0.00020821,2]
[374789898,1753446648675,-460.0,0.00020821,2]
[374789899,1753446648685,-460.0,0.00020821,2]
[374789900,1753446648695,-520.02,0.00020821,2]
[374789901,1753446648705,-4130.28,0.00020821,2]
[374789902,1753446648716,-460.0,0.00020821,2]
[374789903,1753446648726,-460.0,0.00020821,2]
[374789904,1753446648736,-460.0,0.00020821,2]
[374789905,1753446648746,-588.86,0.00020821,2]
[374789906,1753446648755,-460.0,0.00020821,2]
[374789907,1753446648766,-460.0,0.00020821,2]
[374789908,1753446648775,-460.0,0.00020821,2]
[374789909,1753446648785,-3401.29,0.00020821,2]
[374789910,1753446648796,-1596.19,0.00020821,2]
[374789911,1753446648805,-151.0,0.00020821,2]
[374789912,1753446648816,-460.0,0.00020821,2]
[374789913,1753446648827,-678.92,0.00020821,2]
[374789914,1753446648838,-1238.21,0.00020821,2]
[374789915,1753446648938,-460.0,0.00020821,2]
[374789916,1753446648948,-1434.65,0.00020821,2]
[374789917,1753446648958,-460.0,0.00020821,2]
[374789918,1753446648968,-469.39,0.00020821,2]
[374789919,1753446648978,-460.0,0.00020821,2]
[374789920,1753446648988,-885.79,0.00020821,2]
[374789921,1753446648997,-1182.99,0.00020821,2]
[374789922,1753446649007,-460.0,0.00020821,2]
[374789923,1753446649017,-482.28,0.00020821,2]
[374789924,1753446649027,-359.72951454,0.00020821,2]
[374789925,1753446649037,-460.0,0.00020821,2]
[374789926,1753446649047,-460.0,0.00020821,2]
[374789927,1753446649057,-460.0,0.00020821,2]
[374789928,1753446649067,-151.0,0.00020821,2]
[374789929,1753446649076,-1059.6,0.00020821,2]
[374789930,1753446649085,-248.4666521,0.00020821,2]
[374789931,1753446649095,-368.337566,0.00020821,2]
[374789932,1753446649104,-460.0,0.00020821,2]
[374789933,1753446649114,-368.337566,0.00020821,2]
[374789934,1753446649123,-753.31,0.00020821,2]
[374789935,1753446649136,-1227.54,0.00020821,2]
[374789936,1753446649146,-460.0,0.00020821,2]
[374789937,1753446649155,-460.0,0.00020821,2]
[374789938,1753446649164,-460.0,0.00020821,2]
[374789939,1753446649175,-460.0,0.00020821,2]
[374789940,1753446649184,-460.0,0.00020821,2]
[374789941,1753446649193,-460.0,0.00020821,2]
[374789942,1753446649204,-460.0,0.00020821,2]
[374789943,1753446649214,-460.0,0.00020821,2]
[374789944,1753446649224,-460.0,0.00020821,2]
[374789945,1753446649235,-1026.89,0.00020821,2]
[374789946,1753446649245,-460.0,0.00020821,2]
[374789947,1753446649255,-460.0,0.00020821,2]
[374789948,1753446649265,-460.0,0.00020821,2]
[374789949,1753446649276,-464.2059696,0.00020821,2]
[374789950,1753446649286,-2497.12,0.00020821,2]
[374789951,1753446649296,-1080.79786783,0.00020831,4]
[374789952,1753446649306,-612.66888773,0.0002086,2]
[374789953,1753446649315,-501.64062068,0.00020913,2]
[374789954,1753446649325,-500.0,0.00020913,2]
[374789955,1753446649335,-177.7876737,0.00020942,2]
[374789956,1753446649345,-260.0,0.00020953,2]
[374789957,1753446649355,-500.0,0.00020985,2]
[374789958,1753446649366,-500.0,0.00020985,2]
[374789959,1753446649376,-3000.0,0.00021,2]
[374789960,1753446649385,-3000.0,0.0002101,2]
[374789961,1753446649396,-3000.0,0.0002102,2]
[374789962,1753446649406,-3000.0,0.0002103,2]
[374789963,1753446649415,-3000.0,0.0002104,2]
[374789964,1753446649425,-3000.0,0.0002105,2]
[374789965,1753446649436,-151.0,0.0002105,2]
[374789966,1753446649446,-151.0,0.0002105,2]
[374789967,1753446649455,-3000.0,0.0002106,2]
[374789968,1753446649466,-3000.0,0.0002107,2]
[374789969,1753446649477,-1080.79786783,0.00021072,4]
[374789970,1753446649487,-500.43649988,0.00021073,2]
[374789971,1753446649496,-500.0,0.00021073,2]
[374789972,1753446649507,-500.0,0.00021073,2]
[374789973,1753446649518,-501.11919719,0.00021073,2]
[374789974,1753446649528,-500.0,0.00021073,2]
[374789975,1753446649540,-500.37542207,0.00021073,2]
[374789976,1753446649551,-513.72045867,0.00021073,2]
[374789977,1753446649561,-500.0,0.00021073,2]
[374789978,1753446649571,-500.0,0.00021073,2]
[374789979,1753446649581,-3000.0,0.0002108,2]
[374789980,1753446649590,-3000.0,0.0002109,2]
[374789981,1753446649600,-460.0,0.00021095,2]
[374789982,1753446649609,-460.0,0.00021095,2]
[374789983,1753446649619,-632.94,0.00021095,2]
[374789984,1753446649629,-460.0,0.00021095,2]
[374789985,1753446649639,-460.0,0.00021095,2]
[374789986,1753446649648,-887.82,0.00021095,2]
[374789987,1753446649658,-460.0,0.00021095,2]
[374789988,1753446649668,-460.0,0.00021095,2]
[374789989,1753446649676,-520.02,0.00021095,2]
[374789990,1753446649685,-4130.28,0.00021095,2]
[374789991,1753446649694,-424.0,0.00021095,2]
[374789992,1753446649702,-191.08,0.00021095,2]
[374789993,1753446649711,-588.86,0.00021095,2]
[374789994,1753446649720,-460.0,0.00021095,2]
[374789995,1753446649729,-3401.29,0.00021095,2]
[374789996,1753446649738,-1596.19,0.00021095,2]
[374789997,1753446649748,-678.92,0.00021095,2]
[374789998,1753446649757,-1238.21,0.00021095,2]
[374789999,1753446649765,-1434.65,0.00021095,2]
[374790000,1753446649775,-460.0,0.00021095,2]
[374790001,1753446649783,-469.39,0.00021095,2]
[374790002,1753446649792,-268.52,0.00021095,2]
[374790003,1753446649801,-885.79,0.00021095,2]
[374790004,1753446649810,-1182.99,0.00021095,2]
[374790005,1753446649819,-460.0,0.00021095,2]
[374790006,1753446649829,-460.0,0.00021095,2]
[374790007,1753446649851,-460.0,0.00021095,2]
[374790008,1753446649863,-1059.6,0.00021095,2]
[374790009,1753446649873,-460.0,0.00021095,2]
[374790010,1753446649883,-753.31,0.00021095,2]
[374790011,1753446649894,-1227.54,0.00021095,2]
[374790012,1753446649904,-460.0,0.00021095,2]
[374790013,1753446649915,-460.0,0.00021095,2]
[374790014,1753446649924,-460.0,0.00021095,2]
[374790015,1753446649934,-512.38,0.00021095,2]
[374790016,1753446649943,-460.0,0.00021095,2]
[374790017,1753446649950,-460.0,0.00021095,2]
[374790018,1753446649959,-460.0,0.00021095,2]
[374790019,1753446649968,-1026.89,0.00021095,2]
[374790020,1753446649976,-460.0,0.00021095,2]
[374790021,1753446649984,-460.0,0.00021095,2]
[374790022,1753446649992,-460.0,0.00021095,2]
[374790023,1753446650001,-2497.12,0.00021095,2]
[374790024,1753446650008,-3000.0,0.000211,2]
[374790025,1753446650016,-151.0,0.000211,2]
[374790026,1753446650023,-151.0,0.000211,2]
[374790027,1753446650031,-3000.0,0.0002111,2]
[374790028,1753446650038,-1162.27601403,0.00021116,2]
[374790029,1753446650046,-3000.0,0.0002112,2]
[374790030,1753446650054,-3000.0,0.0002113,2]
[374790031,1753446650060,-151.0,0.0002113,2]
[374790032,1753446650067,-368.337566,0.0002113,2]
[374790033,1753446650075,-368.337566,0.0002113,2]
[374790034,1753446650083,-3000.0,0.0002114,2]
[374790035,1753446650091,-3000.0,0.0002115,2]
[374790036,1753446650098,-429.8269109,0.00021151,2]
[374790037,1753446650105,-429.8269109,0.00021151,2]
[374790038,1753446650112,-429.8269109,0.00021151,2]
[374790039,1753446650119,-429.8269109,0.00021151,2]
[374790040,1753446650127,-1000.0,0.00021155,2]
[374790041,1753446650138,-3000.0,0.0002116,2]
[374790042,1753446650145,-3000.0,0.0002117,2]
[374790043,1753446650152,-3000.0,0.0002118,2]
[374790044,1753446650160,-151.0,0.0002118,2]
[374790045,1753446650168,-151.0,0.0002118,2]
[374790046,1753446650175,-3000.0,0.0002119,2]
[374790047,1753446650184,-3000.0,0.000212,2]
[374790048,1753446650194,-3000.0,0.0002121,2]
[374790049,1753446650203,-3000.0,0.0002122,2]
[374790050,1753446650214,-3000.0,0.0002123,2]
[374790051,1753446650225,-151.0,0.0002123,2]
[374790052,1753446650235,-3000.0,0.0002124,2]
[374790053,1753446650245,-151.0,0.0002124,2]
[374790054,1753446650256,-311.837,0.0002124,2]
[374790055,1753446650265,-500.0,0.00021246,2]
[374790056,1753446650275,-3000.0,0.0002125,2]
[374790057,1753446650285,-280.33080621,0.00021255,2]
[374790058,1753446650295,-3000.0,0.0002126,2]
[374790059,1753446650304,-3000.0,0.0002127,2]
[374790060,1753446650314,-3000.0,0.0002128,2]
[374790061,1753446650324,-500.0,0.00021285,2]
[374790062,1753446650334,-274.4842035,0.00021285,2]
[374790063,1753446650344,-3000.0,0.0002129,2]
[374790064,1753446650353,-5999.713646,0.000213,2]
[374790065,1753446650363,-151.0,0.000213,2]
[374790066,1753446650372,-151.0,0.000213,2]
[374790067,1753446650382,-151.0,0.000213,4]
[374790068,1753446650392,-1080.79786783,0.00021314,5]
[374790069,1753446650402,-151.368115,0.00021319,2]
[374790070,1753446650411,-216.1,0.00021326,4]
[374790071,1753446650421,-151.0,0.00021369,2]
[374790072,1753446650430,-460.0,0.00021369,2]
[374790073,1753446650440,-632.94,0.00021369,2]
[374790074,1753446650450,-460.0,0.00021369,2]
[374790075,1753446650459,-887.82,0.00021369,2]
[374790076,1753446650469,-425.22,0.00021369,2]
[374790077,1753446650478,-460.0,0.00021369,2]
[374790078,1753446650492,-520.02,0.00021369,2]
[374790079,1753446650502,-4130.28,0.00021369,2]
[374790080,1753446650511,-588.86,0.00021369,2]
[374790081,1753446650521,-460.0,0.00021369,2]
[374790082,1753446650530,-3401.29,0.00021369,2]